[Event "*** Titled Tuesday Blitz"]
[Site "Chess.com"]
[Date "2020.05.05"]
[Round "6"]
[White "VinzentSpitzl"]
[Black "Efremov_Vlad"]
[Result "1/2-1/2"]
[WhiteElo "2383"]
[BlackElo "2139"]
[TimeControl "180+1"]
[EndTime "11:08:11 PDT"]
[Termination "Game drawn by repetition"]

1. e4 {[%clk 0:03:00.9]} 1... c5 {[%clk 0:03:00]} 2. Nf3 {[%clk 0:03:01]} 2...
Nc6 {[%clk 0:03:00.3]} 3. Bb5 {[%clk 0:02:58]} 3... g6 {[%clk 0:02:59.5]} 4. O-O
{[%clk 0:02:56.6]} 4... Bg7 {[%clk 0:02:58.5]} 5. Bxc6 {[%clk 0:02:56]} 5...
bxc6 {[%clk 0:02:57.7]} 6. Re1 {[%clk 0:02:53.9]} 6... Nh6 {[%clk 0:02:48.5]} 7.
Nc3 {[%clk 0:02:52.7]} 7... O-O {[%clk 0:02:44.7]} 8. d4 {[%clk 0:02:51.8]} 8...
cxd4 {[%clk 0:02:38.7]} 9. Nxd4 {[%clk 0:02:52.7]} 9... Qc7 {[%clk 0:02:06.2]}
10. h3 {[%clk 0:02:41.6]} 10... d6 {[%clk 0:02:04.4]} 11. Be3 {[%clk 0:02:34.3]}
11... f5 {[%clk 0:02:03.5]} 12. Bxh6 {[%clk 0:02:02]} 12... Bxh6 {[%clk
0:01:59]} 13. exf5 {[%clk 0:02:02.2]} 13... Bxf5 {[%clk 0:01:39.3]} 14. Nxf5
{[%clk 0:01:34.9]} 14... Rxf5 {[%clk 0:01:38.7]} 15. Qe2 {[%clk 0:01:33.7]}
15... e5 {[%clk 0:01:37.5]} 16. Rad1 {[%clk 0:01:32.4]} 16... Raf8 {[%clk
0:01:34.1]} 17. f3 {[%clk 0:01:20.3]} 17... d5 {[%clk 0:01:23.2]} 18. b3 {[%clk
0:01:15.3]} 18... Bg7 {[%clk 0:01:21.9]} 19. Nb1 {[%clk 0:01:01.8]} 19... Rf4
{[%clk 0:01:12]} 20. Nd2 {[%clk 0:00:48.2]} 20... Qb6+ {[%clk 0:00:51.4]} 21.
Kh1 {[%clk 0:00:45.7]} 21... a5 {[%clk 0:00:43.4]} 22. c4 {[%clk 0:00:37]} 22...
Qc5 {[%clk 0:00:31.4]} 23. Qe3 {[%clk 0:00:24.9]} 23... Qxe3 {[%clk 0:00:30.4]}
24. Rxe3 {[%clk 0:00:25.8]} 24... Ra8 {[%clk 0:00:27.6]} 25. g3 {[%clk
0:00:21.1]} 25... Rd4 {[%clk 0:00:26.7]} 26. Ree1 {[%clk 0:00:19.6]} 26... a4
{[%clk 0:00:25.3]} 27. Nb1 {[%clk 0:00:12.7]} 27... Rxd1 {[%clk 0:00:20.3]} 28.
Rxd1 {[%clk 0:00:12.6]} 28... axb3 {[%clk 0:00:21]} 29. axb3 {[%clk 0:00:11.9]}
29... Rb8 {[%clk 0:00:12.3]} 30. Nd2 {[%clk 0:00:10.7]} 30... Rb4 {[%clk
0:00:11.3]} 31. Kg2 {[%clk 0:00:08.7]} 31... Kf7 {[%clk 0:00:10.6]} 32. Kf2
{[%clk 0:00:08]} 32... Ke6 {[%clk 0:00:10.5]} 33. Ke2 {[%clk 0:00:07.9]} 33...
Bh6 {[%clk 0:00:10.4]} 34. Kd3 {[%clk 0:00:07.7]} 34... Bxd2 {[%clk 0:00:10.1]}
35. cxd5+ {[%clk 0:00:06.9]} 35... cxd5 {[%clk 0:00:09.9]} 36. Rxd2 {[%clk
0:00:05.8]} 36... Rxb3+ {[%clk 0:00:08.3]} 37. Ke2 {[%clk 0:00:06.3]} 37... d4
{[%clk 0:00:07.8]} 38. Rc2 {[%clk 0:00:06.3]} 38... Kd5 {[%clk 0:00:07]} 39. Rc8
{[%clk 0:00:04.9]} 39... h5 {[%clk 0:00:06.7]} 40. Rd8+ {[%clk 0:00:04.7]} 40...
Ke6 {[%clk 0:00:06.4]} 41. Re8+ {[%clk 0:00:04.8]} 41... Kf6 {[%clk 0:00:06]}
42. Rf8+ {[%clk 0:00:04.8]} 42... Ke7 {[%clk 0:00:06]} 43. Rg8 {[%clk
0:00:04.9]} 43... Kf7 {[%clk 0:00:06.4]} 44. Rc8 {[%clk 0:00:05.4]} 44... Rb2+
{[%clk 0:00:06.2]} 45. Kd3 {[%clk 0:00:05.5]} 45... Rb3+ {[%clk 0:00:06.4]} 46.
Ke2 {[%clk 0:00:05.8]} 46... Rb2+ {[%clk 0:00:06.1]} 47. Kd3 {[%clk 0:00:06.2]}
47... Rb3+ {[%clk 0:00:06.5]} 48. Ke2 {[%clk 0:00:06.7]} 1/2-1/2

[Event "*** Titled Tuesday Blitz"]
[Site "Chess.com"]
[Date "2020.05.05"]
[Round "6"]
[White "PaulfromSPb"]
[Black "Kezin_Roman"]
[Result "1-0"]
[WhiteElo "2626"]
[BlackElo "2785"]
[TimeControl "180+1"]
[EndTime "11:08:12 PDT"]
[Termination "PaulfromSPb won by resignation"]

1. e4 {[%clk 0:03:00.9]} 1... c5 {[%clk 0:02:59.7]} 2. Ne2 {[%clk 0:02:58.1]}
2... Nc6 {[%clk 0:02:56.6]} 3. d4 {[%clk 0:02:56.9]} 3... cxd4 {[%clk
0:02:57.5]} 4. Nxd4 {[%clk 0:02:57.8]} 4... e6 {[%clk 0:02:57.8]} 5. Nc3 {[%clk
0:02:54.3]} 5... Qc7 {[%clk 0:02:57.6]} 6. Be2 {[%clk 0:02:53.7]} 6... a6 {[%clk
0:02:57.4]} 7. f4 {[%clk 0:02:52.1]} 7... b5 {[%clk 0:02:54.5]} 8. Nxc6 {[%clk
0:02:51.2]} 8... Qxc6 {[%clk 0:02:55.4]} 9. Bf3 {[%clk 0:02:50.7]} 9... Bb7
{[%clk 0:02:55]} 10. e5 {[%clk 0:02:43.4]} 10... Qc7 {[%clk 0:02:53.8]} 11. Ne4
{[%clk 0:02:43.1]} 11... Nh6 {[%clk 0:02:34]} 12. Be3 {[%clk 0:02:41.9]} 12...
Nf5 {[%clk 0:02:32.4]} 13. Bf2 {[%clk 0:02:41.8]} 13... Rc8 {[%clk 0:02:26.9]}
14. c3 {[%clk 0:02:38.8]} 14... h5 {[%clk 0:02:20.5]} 15. O-O {[%clk 0:02:32.2]}
15... Be7 {[%clk 0:02:15.4]} 16. Qe2 {[%clk 0:02:16.8]} 16... Qc4 {[%clk
0:01:57.4]} 17. Qxc4 {[%clk 0:02:00]} 17... Rxc4 {[%clk 0:01:58.3]} 18. Nf6+
{[%clk 0:02:00]} 18... gxf6 {[%clk 0:01:55.5]} 19. Bxb7 {[%clk 0:01:59.9]} 19...
Rxf4 {[%clk 0:01:49.1]} 20. exf6 {[%clk 0:01:58.4]} 20... Bxf6 {[%clk
0:01:48.7]} 21. Bxa6 {[%clk 0:01:58.1]} 21... b4 {[%clk 0:01:49]} 22. g3 {[%clk
0:01:51.1]} 22... Rg4 {[%clk 0:01:34.7]} 23. cxb4 {[%clk 0:01:17.9]} 23... Rxb4
{[%clk 0:01:32.7]} 24. Rab1 {[%clk 0:01:14.8]} 24... d6 {[%clk 0:00:54.7]} 25.
Bd3 {[%clk 0:01:09.2]} 25... Ne7 {[%clk 0:00:43]} 26. Kg2 {[%clk 0:00:57.8]}
26... Be5 {[%clk 0:00:36.4]} 27. b3 {[%clk 0:00:56.4]} 27... Nd5 {[%clk
0:00:34.5]} 28. a3 {[%clk 0:00:53.1]} 28... Rb8 {[%clk 0:00:33.5]} 29. b4 {[%clk
0:00:53.1]} 29... h4 {[%clk 0:00:31.2]} 30. Rb3 {[%clk 0:00:47.4]} 30... Ke7
{[%clk 0:00:28.3]} 31. b5 {[%clk 0:00:42.7]} 31... hxg3 {[%clk 0:00:28.4]} 32.
hxg3 {[%clk 0:00:42.2]} 32... Rhg8 {[%clk 0:00:28.5]} 33. Kf3 {[%clk 0:00:39.5]}
33... Ra8 {[%clk 0:00:25.7]} 34. b6 {[%clk 0:00:37.1]} 34... Rgb8 {[%clk
0:00:25.7]} 35. Rfb1 {[%clk 0:00:31.5]} 35... Ra4 {[%clk 0:00:17]} 36. Bb5
{[%clk 0:00:27.4]} 36... Ra5 {[%clk 0:00:13.8]} 37. Bc6 {[%clk 0:00:26.1]} 37...
Nc3 {[%clk 0:00:12.1]} 38. Rc1 {[%clk 0:00:25.2]} 38... Na4 {[%clk 0:00:10.5]}
39. Bxa4 {[%clk 0:00:20.2]} 39... Rxa4 {[%clk 0:00:10.7]} 40. Rc7+ {[%clk
0:00:18.8]} 40... Kf6 {[%clk 0:00:10.2]} 41. b7 {[%clk 0:00:19]} 41... d5 {[%clk
0:00:10.1]} 42. Rc8 {[%clk 0:00:18.2]} 42... Rxb7 {[%clk 0:00:06.3]} 43. Rxb7
{[%clk 0:00:16.7]} 43... Rxa3+ {[%clk 0:00:07.2]} 44. Kg2 {[%clk 0:00:16.1]}
44... Kg6 {[%clk 0:00:07.5]} 45. Rg8+ {[%clk 0:00:14]} 45... Kf5 {[%clk
0:00:07.6]} 46. Rxf7+ {[%clk 0:00:13.1]} 46... Ke4 {[%clk 0:00:05]} 47. Rg4+
{[%clk 0:00:12.6]} 47... Kd3 {[%clk 0:00:05.5]} 48. Rf3+ {[%clk 0:00:12.4]}
48... Ke2 {[%clk 0:00:06.4]} 49. Rxa3 {[%clk 0:00:13.1]} 1-0

[Event "*** Titled Tuesday Blitz"]
[Site "Chess.com"]
[Date "2020.05.05"]
[Round "6"]
[White "elohunter1999"]
[Black "TheBigBoss04"]
[Result "1-0"]
[WhiteElo "2530"]
[BlackElo "2707"]
[TimeControl "180+1"]
[EndTime "11:08:14 PDT"]
[Termination "elohunter1999 won on time"]

1. e4 {[%clk 0:03:00.9]} 1... g6 {[%clk 0:02:53.3]} 2. d4 {[%clk 0:03:00.4]}
2... Bg7 {[%clk 0:02:52.6]} 3. Nc3 {[%clk 0:02:59.8]} 3... c6 {[%clk 0:02:50]}
4. Nf3 {[%clk 0:02:57.9]} 4... d5 {[%clk 0:02:50.2]} 5. h3 {[%clk 0:02:58.4]}
5... dxe4 {[%clk 0:02:49.7]} 6. Nxe4 {[%clk 0:02:59.3]} 6... Nf6 {[%clk
0:02:50.1]} 7. Nxf6+ {[%clk 0:02:58.1]} 7... exf6 {[%clk 0:02:50]} 8. Bc4 {[%clk
0:02:57.4]} 8... O-O {[%clk 0:02:49.8]} 9. O-O {[%clk 0:02:55.5]} 9... Nd7
{[%clk 0:02:50.6]} 10. Re1 {[%clk 0:02:52.6]} 10... b5 {[%clk 0:02:50.5]} 11.
Bb3 {[%clk 0:02:52.1]} 11... Nb6 {[%clk 0:02:50.8]} 12. c3 {[%clk 0:02:48.2]}
12... a5 {[%clk 0:02:47.7]} 13. a4 {[%clk 0:02:41.5]} 13... bxa4 {[%clk
0:02:44.2]} 14. Bxa4 {[%clk 0:02:40]} 14... Nxa4 {[%clk 0:02:44.9]} 15. Qxa4
{[%clk 0:02:39.2]} 15... Be6 {[%clk 0:02:33.5]} 16. Bf4 {[%clk 0:02:10.4]} 16...
Bd5 {[%clk 0:02:32.3]} 17. Nd2 {[%clk 0:02:09.6]} 17... Qd7 {[%clk 0:02:27]} 18.
Nc4 {[%clk 0:02:04.2]} 18... Qf5 {[%clk 0:02:23.8]} 19. Bg3 {[%clk 0:02:04]}
19... h5 {[%clk 0:02:16.2]} 20. Ne3 {[%clk 0:02:02.8]} 20... Qg5 {[%clk
0:02:07.5]} 21. h4 {[%clk 0:01:54.4]} 21... Qh6 {[%clk 0:02:07.5]} 22. Nxd5
{[%clk 0:01:55.2]} 22... cxd5 {[%clk 0:02:06.9]} 23. Qb5 {[%clk 0:01:52.3]}
23... Rfd8 {[%clk 0:01:56.2]} 24. Rxa5 {[%clk 0:01:48.4]} 24... Qd2 {[%clk
0:01:52.3]} 25. Rea1 {[%clk 0:01:45.8]} 25... Rxa5 {[%clk 0:01:47.4]} 26. Qxa5
{[%clk 0:01:37.9]} 26... Re8 {[%clk 0:01:47.1]} 27. Qxd5 {[%clk 0:01:37.1]}
27... Qxb2 {[%clk 0:01:45.7]} 28. Ra8 {[%clk 0:01:36.1]} 28... Rxa8 {[%clk
0:01:42.2]} 29. Qxa8+ {[%clk 0:01:35.6]} 29... Kh7 {[%clk 0:01:43]} 30. d5
{[%clk 0:01:31.9]} 30... Qxc3 {[%clk 0:01:33.2]} 31. d6 {[%clk 0:01:31.8]} 31...
f5 {[%clk 0:01:10.3]} 32. d7 {[%clk 0:01:21.4]} 32... Bf6 {[%clk 0:01:10.4]} 33.
d8=Q {[%clk 0:01:19.2]} 33... Bxd8 {[%clk 0:01:10.6]} 34. Qxd8 {[%clk
0:01:19.6]} 34... Qc1+ {[%clk 0:01:11.2]} 35. Kh2 {[%clk 0:01:13.5]} 35... f4
{[%clk 0:01:11.7]} 36. Qf6 {[%clk 0:00:52.3]} 36... fxg3+ {[%clk 0:01:10.8]} 37.
Kxg3 {[%clk 0:00:52.9]} 37... Qa3+ {[%clk 0:01:07.1]} 38. f3 {[%clk 0:00:51]}
38... Qb3 {[%clk 0:01:05.4]} 39. Qd4 {[%clk 0:00:45.6]} 39... Qe6 {[%clk
0:01:04]} 40. Kf2 {[%clk 0:00:43.5]} 40... Qe7 {[%clk 0:01:01.7]} 41. g3 {[%clk
0:00:43.2]} 41... f6 {[%clk 0:01:00.6]} 42. f4 {[%clk 0:00:38.7]} 42... Qe6
{[%clk 0:00:59]} 43. Kf3 {[%clk 0:00:36]} 43... Qc6+ {[%clk 0:00:57.9]} 44. Qe4
{[%clk 0:00:35.4]} 44... Qc3+ {[%clk 0:00:55.1]} 45. Qe3 {[%clk 0:00:35.3]}
45... Qb4 {[%clk 0:00:49.2]} 46. Qe4 {[%clk 0:00:32.4]} 46... Qa3+ {[%clk
0:00:42.7]} 47. Kg2 {[%clk 0:00:30.5]} 47... Qb2+ {[%clk 0:00:41]} 48. Kh3
{[%clk 0:00:30.3]} 48... Qa3 {[%clk 0:00:30.5]} 49. f5 {[%clk 0:00:28.5]} 49...
g5 {[%clk 0:00:18]} 50. hxg5 {[%clk 0:00:28]} 50... fxg5 {[%clk 0:00:18.9]} 51.
f6+ {[%clk 0:00:27.8]} 51... Kh6 {[%clk 0:00:17.2]} 52. Qe7 {[%clk 0:00:23.5]}
52... g4+ {[%clk 0:00:06.7]} 53. Kh4 {[%clk 0:00:23.4]} 1-0

[Event "*** Titled Tuesday Blitz"]
[Site "Chess.com"]
[Date "2020.05.05"]
[Round "6"]
[White "fish7728"]
[Black "crossingthestreet"]
[Result "0-1"]
[WhiteElo "2048"]
[BlackElo "2278"]
[TimeControl "180+1"]
[EndTime "11:08:15 PDT"]
[Termination "crossingthestreet won on time"]

1. d4 {[%clk 0:03:00.9]} 1... Nf6 {[%clk 0:02:58.7]} 2. c4 {[%clk 0:02:58.1]}
2... e6 {[%clk 0:02:58.4]} 3. Nc3 {[%clk 0:02:58.1]} 3... c5 {[%clk 0:02:55.5]}
4. d5 {[%clk 0:02:58]} 4... d6 {[%clk 0:02:55.5]} 5. e4 {[%clk 0:02:56]} 5... g6
{[%clk 0:02:55.4]} 6. Nf3 {[%clk 0:02:55]} 6... Bg7 {[%clk 0:02:55.9]} 7. h3
{[%clk 0:02:55.4]} 7... O-O {[%clk 0:02:54.4]} 8. Bd3 {[%clk 0:02:51.5]} 8... a6
{[%clk 0:02:54.1]} 9. a4 {[%clk 0:02:51]} 9... e5 {[%clk 0:02:53]} 10. Be3
{[%clk 0:02:46.3]} 10... Nh5 {[%clk 0:02:47]} 11. Ne2 {[%clk 0:02:35.1]} 11...
f5 {[%clk 0:02:44.7]} 12. exf5 {[%clk 0:02:33.9]} 12... gxf5 {[%clk 0:02:45.6]}
13. Bg5 {[%clk 0:02:13.1]} 13... Qe8 {[%clk 0:02:26.9]} 14. Nh2 {[%clk
0:02:04.5]} 14... e4 {[%clk 0:02:14.9]} 15. Bc2 {[%clk 0:02:04.1]} 15... f4
{[%clk 0:02:01.5]} 16. Qb1 {[%clk 0:01:48]} 16... h6 {[%clk 0:01:19.9]} 17. Bh4
{[%clk 0:01:36.4]} 17... f3 {[%clk 0:01:02.8]} 18. Ng3 {[%clk 0:01:22.2]} 18...
Nf4 {[%clk 0:00:58.1]} 19. gxf3 {[%clk 0:01:13.8]} 19... exf3+ {[%clk
0:00:43.5]} 20. Kf1 {[%clk 0:01:13.7]} 20... Bxh3+ {[%clk 0:00:43.4]} 21. Kg1
{[%clk 0:01:13.6]} 21... Qe2 {[%clk 0:00:18.6]} 22. Ng4 {[%clk 0:00:33.8]} 22...
Qd2 {[%clk 0:00:06.2]} 23. Ne3 {[%clk 0:00:18.8]} 23... Bd4 {[%clk 0:00:05.6]}
24. Qe1 {[%clk 0:00:16.6]} 24... Bxe3 {[%clk 0:00:05.6]} 25. Qxe3 {[%clk
0:00:14.5]} 25... Qxc2 {[%clk 0:00:05.8]} 26. Qxf3 {[%clk 0:00:13.7]} 26... Nd7
{[%clk 0:00:05.3]} 27. Ne2 {[%clk 0:00:11.5]} 27... Qxe2 {[%clk 0:00:03.3]} 28.
Rxh3 {[%clk 0:00:10.1]} 28... Nxh3+ {[%clk 0:00:02.7]} 29. Qxh3 {[%clk
0:00:09.1]} 29... Qe4 {[%clk 0:00:01.2]} 30. Bg3 {[%clk 0:00:09.3]} 30... Qg6
{[%clk 0:00:01.2]} 31. Qxd7 {[%clk 0:00:09.3]} 31... Rad8 {[%clk 0:00:01.6]} 32.
Qh3 {[%clk 0:00:08]} 32... Rde8 {[%clk 0:00:02.5]} 33. Kg2 {[%clk 0:00:07.6]}
33... Rf7 {[%clk 0:00:03]} 34. Rh1 {[%clk 0:00:06.3]} 34... Ref8 {[%clk
0:00:03.9]} 35. Qxh6 {[%clk 0:00:05.8]} 35... Qxh6 {[%clk 0:00:04.8]} 36. Rxh6
{[%clk 0:00:06.2]} 36... Rf6 {[%clk 0:00:05.7]} 37. Rh5 {[%clk 0:00:05.9]} 37...
Kg7 {[%clk 0:00:05.3]} 38. Rg5+ {[%clk 0:00:06.1]} 38... Kf7 {[%clk 0:00:05.5]}
39. Rh5 {[%clk 0:00:06]} 39... Re8 {[%clk 0:00:05.7]} 40. Rh7+ {[%clk 0:00:06]}
40... Kg6 {[%clk 0:00:06.4]} 41. Rxb7 {[%clk 0:00:06.3]} 41... Re2 {[%clk
0:00:06.3]} 42. Rb6 {[%clk 0:00:05.6]} 42... Rc2 {[%clk 0:00:06.8]} 43. b3
{[%clk 0:00:04.5]} 43... Rb2 {[%clk 0:00:06.7]} 44. Bxd6 {[%clk 0:00:03.3]}
44... Rxb3 {[%clk 0:00:05.2]} 45. Rxb3 {[%clk 0:00:02.9]} 45... Rxd6 {[%clk
0:00:06.1]} 0-1

[Event "*** Titled Tuesday Blitz"]
[Site "Chess.com"]
[Date "2020.05.05"]
[Round "6"]
[White "lachesisQ"]
[Black "LPSupi"]
[Result "1-0"]
[WhiteElo "3094"]
[BlackElo "2917"]
[TimeControl "180+1"]
[EndTime "11:08:16 PDT"]
[Termination "lachesisQ won by checkmate"]

1. e4 {[%clk 0:03:00.9]} 1... c5 {[%clk 0:02:57.8]} 2. Nf3 {[%clk 0:02:56.2]}
2... d6 {[%clk 0:02:57.8]} 3. Bb5+ {[%clk 0:02:55.1]} 3... Bd7 {[%clk
0:02:57.3]} 4. Bxd7+ {[%clk 0:02:54.4]} 4... Nxd7 {[%clk 0:02:58.2]} 5. O-O
{[%clk 0:02:54.2]} 5... Ngf6 {[%clk 0:02:58.8]} 6. Qe2 {[%clk 0:02:54.4]} 6...
Rc8 {[%clk 0:02:59.3]} 7. b3 {[%clk 0:02:54.8]} 7... g6 {[%clk 0:02:58.5]} 8.
Bb2 {[%clk 0:02:55.1]} 8... Bg7 {[%clk 0:02:58.8]} 9. d4 {[%clk 0:02:54.1]} 9...
cxd4 {[%clk 0:02:56.2]} 10. Nxd4 {[%clk 0:02:54]} 10... Nc5 {[%clk 0:02:24]} 11.
Nd2 {[%clk 0:02:52.3]} 11... O-O {[%clk 0:02:23.5]} 12. c4 {[%clk 0:02:52.3]}
12... e6 {[%clk 0:02:20]} 13. Rfd1 {[%clk 0:02:50.7]} 13... a6 {[%clk
0:02:17.6]} 14. Rac1 {[%clk 0:02:44]} 14... Qc7 {[%clk 0:02:12.6]} 15. f3 {[%clk
0:02:28.3]} 15... Rfe8 {[%clk 0:02:10.4]} 16. Nf1 {[%clk 0:02:24.2]} 16... Qb8
{[%clk 0:02:10.2]} 17. Nc2 {[%clk 0:01:50.8]} 17... d5 {[%clk 0:00:58.5]} 18. e5
{[%clk 0:01:39.8]} 18... Nh5 {[%clk 0:00:57.3]} 19. Qe3 {[%clk 0:01:18.5]} 19...
dxc4 {[%clk 0:00:50.8]} 20. bxc4 {[%clk 0:01:12]} 20... Bf8 {[%clk 0:00:15.8]}
21. Bd4 {[%clk 0:01:11.8]} 21... Ng7 {[%clk 0:00:14.9]} 22. g4 {[%clk
0:01:12.1]} 22... Red8 {[%clk 0:00:13.2]} 23. Ng3 {[%clk 0:01:11.7]} 23... Be7
{[%clk 0:00:09.5]} 24. Kg2 {[%clk 0:01:11.8]} 24... Rd7 {[%clk 0:00:07.9]} 25.
Rd2 {[%clk 0:00:49.9]} 25... Rcd8 {[%clk 0:00:08]} 26. Rcd1 {[%clk 0:00:50.1]}
26... Qc8 {[%clk 0:00:08.7]} 27. Ne1 {[%clk 0:00:46.9]} 27... Na4 {[%clk
0:00:08.1]} 28. Qb3 {[%clk 0:00:32.5]} 28... Nc5 {[%clk 0:00:07.7]} 29. Qc2
{[%clk 0:00:32.7]} 29... Qc6 {[%clk 0:00:07.9]} 30. Bxc5 {[%clk 0:00:24.8]}
30... Rxd2+ {[%clk 0:00:06.6]} 31. Rxd2 {[%clk 0:00:25]} 31... Qxc5 {[%clk
0:00:05.4]} 32. Nd3 {[%clk 0:00:20.3]} 32... Qc6 {[%clk 0:00:03.9]} 33. Ne4
{[%clk 0:00:20.6]} 33... Ne8 {[%clk 0:00:04.4]} 34. Ndf2 {[%clk 0:00:14.9]}
34... Rc8 {[%clk 0:00:04.8]} 35. Qd1 {[%clk 0:00:13.9]} 35... Kf8 {[%clk
0:00:04.8]} 36. Rd7 {[%clk 0:00:13.5]} 36... Qxc4 {[%clk 0:00:04.7]} 37. Qd2
{[%clk 0:00:13.9]} 37... Qb4 {[%clk 0:00:03.2]} 38. Qh6+ {[%clk 0:00:13.8]}
38... Kg8 {[%clk 0:00:03.7]} 39. Rd2 {[%clk 0:00:09.9]} 39... Qb6 {[%clk
0:00:03]} 40. g5 {[%clk 0:00:09.8]} 40... Qc7 {[%clk 0:00:03.2]} 41. Ng4 {[%clk
0:00:09.8]} 41... Kh8 {[%clk 0:00:01.2]} 42. Rd4 {[%clk 0:00:06.1]} 42... Qc6
{[%clk 0:00:01.4]} 43. Ngf6 {[%clk 0:00:05.7]} 43... Qc2+ {[%clk 0:00:02.3]} 44.
Kg3 {[%clk 0:00:05.3]} 44... Nxf6 {[%clk 0:00:01.6]} 45. Nxf6 {[%clk 0:00:05.6]}
45... Bxf6 {[%clk 0:00:01.8]} 46. gxf6 {[%clk 0:00:06.5]} 46... Rg8 {[%clk
0:00:01.9]} 47. Qxh7+ {[%clk 0:00:07]} 47... Kxh7 {[%clk 0:00:01.8]} 48. Rh4#
{[%clk 0:00:07.9]} 1-0

[Event "*** Titled Tuesday Blitz"]
[Site "Chess.com"]
[Date "2020.05.05"]
[Round "6"]
[White "AryanTari"]
[Black "Aygehovit1992"]
[Result "0-1"]
[WhiteElo "2864"]
[BlackElo "2693"]
[TimeControl "180+1"]
[EndTime "11:08:16 PDT"]
[Termination "Aygehovit1992 won by resignation"]

1. e4 {[%clk 0:03:00.9]} 1... d6 {[%clk 0:02:59.7]} 2. d4 {[%clk 0:02:47]} 2...
g6 {[%clk 0:02:58.4]} 3. Nf3 {[%clk 0:02:44.9]} 3... Bg7 {[%clk 0:02:58.7]} 4.
Bc4 {[%clk 0:02:44.9]} 4... c6 {[%clk 0:02:56.7]} 5. O-O {[%clk 0:02:44.4]} 5...
Nf6 {[%clk 0:02:53.8]} 6. Re1 {[%clk 0:02:42.2]} 6... Bg4 {[%clk 0:02:53.6]} 7.
Nbd2 {[%clk 0:02:39.3]} 7... O-O {[%clk 0:02:43]} 8. h3 {[%clk 0:02:27.4]} 8...
Bxf3 {[%clk 0:02:35.3]} 9. Nxf3 {[%clk 0:02:28.3]} 9... d5 {[%clk 0:02:35.9]}
10. exd5 {[%clk 0:02:27.1]} 10... cxd5 {[%clk 0:02:36.8]} 11. Bd3 {[%clk
0:02:27.2]} 11... Nc6 {[%clk 0:02:36.4]} 12. c3 {[%clk 0:02:27]} 12... a6 {[%clk
0:02:33.6]} 13. Bf4 {[%clk 0:02:26.6]} 13... e6 {[%clk 0:02:30.5]} 14. Qd2
{[%clk 0:02:23]} 14... Re8 {[%clk 0:02:27.6]} 15. Re2 {[%clk 0:02:22]} 15... Rc8
{[%clk 0:02:15.8]} 16. Rae1 {[%clk 0:02:21.1]} 16... b5 {[%clk 0:02:14.8]} 17.
Bh6 {[%clk 0:02:13.9]} 17... Nd7 {[%clk 0:02:08.6]} 18. Nh2 {[%clk 0:02:05]}
18... Bxh6 {[%clk 0:01:59.4]} 19. Qxh6 {[%clk 0:02:04.7]} 19... Qf6 {[%clk
0:02:00.1]} 20. Ng4 {[%clk 0:02:04.5]} 20... Qg7 {[%clk 0:01:59.2]} 21. Qf4
{[%clk 0:02:01.9]} 21... Nd8 {[%clk 0:01:20.2]} 22. Qd6 {[%clk 0:01:47]} 22...
Nb8 {[%clk 0:01:18.4]} 23. Qxd5 {[%clk 0:01:33.4]} 23... h5 {[%clk 0:01:07.5]}
24. Nh2 {[%clk 0:01:25.1]} 24... exd5 {[%clk 0:01:01.3]} 25. Rxe8+ {[%clk
0:01:26]} 25... Kh7 {[%clk 0:01:01.9]} 26. Nf3 {[%clk 0:01:26.7]} 26... Nbc6
{[%clk 0:00:47.1]} 27. Ne5 {[%clk 0:01:04.6]} 27... Rc7 {[%clk 0:00:33.6]} 28.
Nf3 {[%clk 0:00:38.4]} 28... Kh6 {[%clk 0:00:32.1]} 29. h4 {[%clk 0:00:38.6]}
29... Ne6 {[%clk 0:00:28.6]} 30. g3 {[%clk 0:00:38]} 30... Re7 {[%clk
0:00:24.5]} 31. Rc8 {[%clk 0:00:37]} 31... Nexd4 {[%clk 0:00:16.1]} 32. cxd4
{[%clk 0:00:30.5]} 32... Rxe1+ {[%clk 0:00:14.6]} 33. Nxe1 {[%clk 0:00:31.4]}
33... Nxd4 {[%clk 0:00:15.3]} 34. Re8 {[%clk 0:00:21.2]} 34... Qf6 {[%clk
0:00:14.2]} 35. Kg2 {[%clk 0:00:19.6]} 35... Kg7 {[%clk 0:00:13.2]} 36. b3
{[%clk 0:00:19.3]} 36... Ne6 {[%clk 0:00:10.8]} 37. Nf3 {[%clk 0:00:19.3]} 37...
Qb2 {[%clk 0:00:10.8]} 38. Ra8 {[%clk 0:00:17.4]} 38... Qxa2 {[%clk 0:00:10.7]}
39. Bxb5 {[%clk 0:00:18]} 39... Qxb3 {[%clk 0:00:10.7]} 40. Bxa6 {[%clk
0:00:18.4]} 40... Nc7 {[%clk 0:00:09.4]} 41. Ra7 {[%clk 0:00:15.9]} 41... Qb6
{[%clk 0:00:08.9]} 42. Rb7 {[%clk 0:00:16.3]} 42... Qc6 {[%clk 0:00:08.4]} 43.
Nd4 {[%clk 0:00:14.7]} 43... Qxa6 {[%clk 0:00:08.2]} 44. Rxc7 {[%clk 0:00:15.1]}
44... Qb6 {[%clk 0:00:08.1]} 45. Rc2 {[%clk 0:00:09.5]} 45... Qxd4 {[%clk
0:00:07.8]} 46. Kh2 {[%clk 0:00:10.4]} 46... Qe4 {[%clk 0:00:07.8]} 47. Rd2
{[%clk 0:00:10.8]} 47... d4 {[%clk 0:00:08.1]} 48. Rb2 {[%clk 0:00:09.6]} 48...
d3 {[%clk 0:00:08.3]} 49. Re2 {[%clk 0:00:09.4]} 49... dxe2 {[%clk 0:00:08]} 0-1